[Event "Late-Titled-Tuesday-Blitz-March-26-2024"]
[Site "Chess.com"]
[Date "2024.03.26"]
[Round "9"]
[White "ViIIagra"]
[Black "Msb2"]
[Result "1-0"]
[WhiteElo "2903"]
[BlackElo "3014"]
[TimeControl "180+1"]
[EndTime "15:45:34 PDT"]
[Termination "ViIIagra won by checkmate"]

1. g3 {[%clk 0:02:59.7]} 1... d5 {[%clk 0:03:00.1]} 2. Bg2 {[%clk 0:02:57.5]}
2... Nf6 {[%clk 0:03:00.4]} 3. d3 {[%clk 0:02:56.8]} 3... e5 {[%clk 0:02:57.4]}
4. Nf3 {[%clk 0:02:54.6]} 4... Bd6 {[%clk 0:02:57.4]} 5. O-O {[%clk 0:02:54.4]}
5... O-O {[%clk 0:02:57.8]} 6. c4 {[%clk 0:02:52.6]} 6... c6 {[%clk 0:02:54.3]}
7. cxd5 {[%clk 0:02:52.8]} 7... cxd5 {[%clk 0:02:55.2]} 8. Nc3 {[%clk 0:02:53]}
8... h6 {[%clk 0:02:25.5]} 9. Nb5 {[%clk 0:02:01.9]} 9... Nc6 {[%clk 0:02:25.4]}
10. Nxd6 {[%clk 0:02:01.7]} 10... Qxd6 {[%clk 0:02:26.3]} 11. d4 {[%clk
0:02:02.4]} 11... e4 {[%clk 0:02:17.1]} 12. Ne5 {[%clk 0:01:53.2]} 12... Bf5
{[%clk 0:02:01.9]} 13. Bf4 {[%clk 0:01:48.6]} 13... Qe6 {[%clk 0:02:02.5]} 14.
Nxc6 {[%clk 0:01:40.7]} 14... bxc6 {[%clk 0:02:03.4]} 15. Rc1 {[%clk 0:01:37.9]}
15... Bh3 {[%clk 0:02:01]} 16. Rxc6 {[%clk 0:01:20.8]} 16... Qxc6 {[%clk
0:01:59.4]} 17. Bxh3 {[%clk 0:01:21.4]} 17... Nh5 {[%clk 0:01:49.6]} 18. Bd2
{[%clk 0:01:04.1]} 18... f5 {[%clk 0:01:47.5]} 19. e3 {[%clk 0:00:57.2]} 19...
Qg6 {[%clk 0:01:46]} 20. Bb4 {[%clk 0:00:56.3]} 20... Rfb8 {[%clk 0:01:41.1]}
21. Qd2 {[%clk 0:00:54.7]} 21... Nf6 {[%clk 0:01:27.5]} 22. Bc5 {[%clk
0:00:47.2]} 22... Ng4 {[%clk 0:01:27]} 23. b4 {[%clk 0:00:42]} 23... Qh5 {[%clk
0:01:26.7]} 24. Bxg4 {[%clk 0:00:41.5]} 24... Qxg4 {[%clk 0:01:20.1]} 25. Qd1
{[%clk 0:00:33]} 25... a5 {[%clk 0:01:04.8]} 26. Qb3 {[%clk 0:00:17.4]} 26...
axb4 {[%clk 0:00:58.3]} 27. Qxd5+ {[%clk 0:00:17.5]} 27... Kh8 {[%clk
0:00:58.2]} 28. Bxb4 {[%clk 0:00:17.9]} 28... Rd8 {[%clk 0:00:42.1]} 29. Qe5
{[%clk 0:00:15.9]} 29... Re8 {[%clk 0:00:28.1]} 30. Qd5 {[%clk 0:00:15.8]} 30...
Rad8 {[%clk 0:00:28.5]} 31. Qf7 {[%clk 0:00:14.6]} 31... f4 {[%clk 0:00:19.6]}
32. Qxf4 {[%clk 0:00:14.2]} 32... Qe6 {[%clk 0:00:17.9]} 33. a3 {[%clk
0:00:13.3]} 33... Rd5 {[%clk 0:00:17.8]} 34. Rc1 {[%clk 0:00:12.7]} 34... Rf5
{[%clk 0:00:17.9]} 35. Qc7 {[%clk 0:00:12.9]} 35... Qf6 {[%clk 0:00:15.9]} 36.
Qc6 {[%clk 0:00:12.5]} 36... Qf7 {[%clk 0:00:15]} 37. Rc2 {[%clk 0:00:12]} 37...
Re6 {[%clk 0:00:13.9]} 38. Qc8+ {[%clk 0:00:10.7]} 38... Kh7 {[%clk 0:00:14.1]}
39. Qc4 {[%clk 0:00:10.7]} 39... Qe8 {[%clk 0:00:11.9]} 40. d5 {[%clk
0:00:10.5]} 40... Ref6 {[%clk 0:00:11.8]} 41. d6 {[%clk 0:00:10.9]} 41... Rh5
{[%clk 0:00:09]} 42. Rd2 {[%clk 0:00:08.6]} 42... Qd7 {[%clk 0:00:07.3]} 43. Qf1
{[%clk 0:00:07.5]} 43... Rhf5 {[%clk 0:00:04.5]} 44. Qc4 {[%clk 0:00:07.6]}
44... Re5 {[%clk 0:00:03.9]} 45. Qc7 {[%clk 0:00:07.7]} 45... Qh3 {[%clk
0:00:03.7]} 46. d7 {[%clk 0:00:06.4]} 46... Rh5 {[%clk 0:00:04.4]} 47. f4 {[%clk
0:00:06.6]} 47... exf3 {[%clk 0:00:04.4]} 48. Qc2+ {[%clk 0:00:05.9]} 48... Rg6
{[%clk 0:00:01.8]} 49. d8=Q {[%clk 0:00:05.2]} 49... Qe6 {[%clk 0:00:02.2]} 50.
Qcd3 {[%clk 0:00:03.4]} 50... f2+ {[%clk 0:00:02.2]} 51. Rxf2 {[%clk 0:00:03.9]}
51... Re5 {[%clk 0:00:02.9]} 52. Qf8 {[%clk 0:00:03.9]} 52... Rxe3 {[%clk
0:00:03.2]} 53. Qdd8 {[%clk 0:00:04.8]} 53... Re1+ {[%clk 0:00:03.4]} 54. Kg2
{[%clk 0:00:05.7]} 54... Qe4+ {[%clk 0:00:03.5]} 55. Qf3 {[%clk 0:00:06.4]}
55... Qb1 {[%clk 0:00:03.2]} 56. Qfa8 {[%clk 0:00:06.9]} 56... Rg1+ {[%clk
0:00:03.6]} 57. Kh3 {[%clk 0:00:07.5]} 57... Rf6 {[%clk 0:00:02.8]} 58. Qg8+
{[%clk 0:00:07.2]} 58... Kg6 {[%clk 0:00:03.5]} 59. Rxf6+ {[%clk 0:00:07.7]}
59... Kxf6 {[%clk 0:00:04.1]} 60. Qf3+ {[%clk 0:00:08.4]} 60... Kg6 {[%clk
0:00:04.1]} 61. Qff7+ {[%clk 0:00:08]} 61... Kg5 {[%clk 0:00:04.8]} 62. Qgxg7+
{[%clk 0:00:08.7]} 62... Qg6 {[%clk 0:00:05.1]} 63. Qgxg6# {[%clk 0:00:09.6]}
1-0

[Event "Late-Titled-Tuesday-Blitz-March-26-2024"]
[Site "Chess.com"]
[Date "2024.03.26"]
[Round "9"]
[White "GHANDEEVAM2003"]
[Black "sergoy"]
[Result "1-0"]
[WhiteElo "3051"]
[BlackElo "2924"]
[TimeControl "180+1"]
[EndTime "15:45:35 PDT"]
[Termination "GHANDEEVAM2003 won on time"]

1. c4 {[%clk 0:03:00.9]} 1... e5 {[%clk 0:03:00]} 2. Nf3 {[%clk 0:03:01.7]} 2...
e4 {[%clk 0:02:58.6]} 3. Nd4 {[%clk 0:03:02]} 3... Nc6 {[%clk 0:02:59.4]} 4.
Nxc6 {[%clk 0:02:59]} 4... dxc6 {[%clk 0:03:00.3]} 5. Nc3 {[%clk 0:02:58.4]}
5... Nf6 {[%clk 0:03:00.5]} 6. g3 {[%clk 0:02:57.6]} 6... Bc5 {[%clk 0:02:59.6]}
7. Bg2 {[%clk 0:02:57.4]} 7... Qe7 {[%clk 0:02:59.2]} 8. a3 {[%clk 0:02:54]}
8... h5 {[%clk 0:02:57.4]} 9. h3 {[%clk 0:02:47.8]} 9... Be6 {[%clk 0:02:50.1]}
10. Qc2 {[%clk 0:02:36.2]} 10... Bf5 {[%clk 0:02:38.2]} 11. e3 {[%clk
0:02:31.6]} 11... O-O-O {[%clk 0:02:34.5]} 12. b4 {[%clk 0:02:31.2]} 12... Bd6
{[%clk 0:02:34.9]} 13. Bb2 {[%clk 0:02:31.3]} 13... Qe6 {[%clk 0:02:31.3]} 14.
Ne2 {[%clk 0:02:27.3]} 14... c5 {[%clk 0:02:26.5]} 15. Rb1 {[%clk 0:02:19.1]}
15... Kb8 {[%clk 0:02:15.9]} 16. bxc5 {[%clk 0:02:06.8]} 16... Bxc5 {[%clk
0:02:15.5]} 17. Nd4 {[%clk 0:02:07.5]} 17... Bxd4 {[%clk 0:02:02.4]} 18. Bxd4
{[%clk 0:02:06.7]} 18... Nd7 {[%clk 0:01:59.4]} 19. Bxg7 {[%clk 0:01:45.7]}
19... Rhg8 {[%clk 0:01:59.1]} 20. Bd4 {[%clk 0:01:46.3]} 20... c5 {[%clk
0:01:57.9]} 21. Ba1 {[%clk 0:01:36.7]} 21... Ne5 {[%clk 0:01:51]} 22. Bxe5+
{[%clk 0:01:36]} 22... Qxe5 {[%clk 0:01:51.9]} 23. Qb2 {[%clk 0:01:29.4]} 23...
Qxb2 {[%clk 0:01:51.8]} 24. Rxb2 {[%clk 0:01:30.3]} 24... Rd3 {[%clk 0:01:52.2]}
25. Ra2 {[%clk 0:01:18.5]} 25... Rgd8 {[%clk 0:01:45.6]} 26. Ke2 {[%clk
0:01:18]} 26... Rb3 {[%clk 0:01:40.5]} 27. Rha1 {[%clk 0:01:07.5]} 27... a5
{[%clk 0:01:29.2]} 28. Kd1 {[%clk 0:00:59.6]} 28... a4 {[%clk 0:01:06.7]} 29.
Kc1 {[%clk 0:00:59.4]} 29... Be6 {[%clk 0:01:01.8]} 30. Bxe4 {[%clk 0:00:46.3]}
30... Bxc4 {[%clk 0:01:01.9]} 31. Rc2 {[%clk 0:00:46.4]} 31... b5 {[%clk
0:01:00.4]} 32. Bf3 {[%clk 0:00:41.2]} 32... Rh8 {[%clk 0:00:30.6]} 33. h4
{[%clk 0:00:40.7]} 33... Kc7 {[%clk 0:00:27.5]} 34. Rb2 {[%clk 0:00:37.6]} 34...
Rxb2 {[%clk 0:00:25.4]} 35. Kxb2 {[%clk 0:00:38.5]} 35... Kb6 {[%clk 0:00:22.9]}
36. Kc2 {[%clk 0:00:36.8]} 36... f6 {[%clk 0:00:22.3]} 37. d3 {[%clk 0:00:34.9]}
37... Bf7 {[%clk 0:00:20.4]} 38. Rb1 {[%clk 0:00:31.5]} 38... Ka5 {[%clk
0:00:19.7]} 39. Kb2 {[%clk 0:00:27.1]} 39... b4 {[%clk 0:00:19.8]} 40. Rc1
{[%clk 0:00:27.5]} 40... Rc8 {[%clk 0:00:15.2]} 41. g4 {[%clk 0:00:24.1]} 41...
hxg4 {[%clk 0:00:14.7]} 42. Bxg4 {[%clk 0:00:25]} 42... Rc7 {[%clk 0:00:14.2]}
43. h5 {[%clk 0:00:24.1]} 43... c4 {[%clk 0:00:11.7]} 44. dxc4 {[%clk
0:00:20.7]} 44... Rb7 {[%clk 0:00:08.8]} 45. h6 {[%clk 0:00:17.1]} 45... bxa3+
{[%clk 0:00:07.1]} 46. Kxa3 {[%clk 0:00:18]} 46... Bg6 {[%clk 0:00:07.3]} 47.
Bd1 {[%clk 0:00:13.5]} 47... Rh7 {[%clk 0:00:02.2]} 48. Bxa4 {[%clk 0:00:13.6]}
48... Rxh6 {[%clk 0:00:03.1]} 49. Bc2 {[%clk 0:00:14.2]} 49... Bf7 {[%clk
0:00:03]} 50. Bb3 {[%clk 0:00:11.7]} 50... Rh2 {[%clk 0:00:03.2]} 51. Rc2 {[%clk
0:00:11.9]} 51... Rh1 {[%clk 0:00:03.9]} 52. Rd2 {[%clk 0:00:08.5]} 52... Rb1
{[%clk 0:00:01]} 53. Ba2 {[%clk 0:00:07]} 53... Kb6 {[%clk 0:00:01.2]} 54. Bxb1
{[%clk 0:00:07]} 1-0

[Event "Late-Titled-Tuesday-Blitz-March-26-2024"]
[Site "Chess.com"]
[Date "2024.03.26"]
[Round "9"]
[White "Zhigalko_Sergei"]
[Black "Byniolus"]
[Result "0-1"]
[WhiteElo "2878"]
[BlackElo "2751"]
[TimeControl "180+1"]
[EndTime "15:45:47 PDT"]
[Termination "Byniolus won on time"]

1. e4 {[%clk 0:03:00.9]} 1... d5 {[%clk 0:03:00.2]} 2. exd5 {[%clk 0:03:00.8]}
2... Nf6 {[%clk 0:03:00.5]} 3. d4 {[%clk 0:03:00.7]} 3... Nxd5 {[%clk
0:03:00.8]} 4. c4 {[%clk 0:03:00.9]} 4... Nb6 {[%clk 0:03:00.7]} 5. Nf3 {[%clk
0:03:00.1]} 5... Bg4 {[%clk 0:03:00.8]} 6. c5 {[%clk 0:02:55]} 6... N6d7 {[%clk
0:02:59.4]} 7. Qb3 {[%clk 0:02:28.5]} 7... Bxf3 {[%clk 0:02:51.4]} 8. Qxf3
{[%clk 0:02:22.1]} 8... Nc6 {[%clk 0:02:50.8]} 9. Bc4 {[%clk 0:02:04.2]} 9... e6
{[%clk 0:02:46.2]} 10. Be3 {[%clk 0:02:00.2]} 10... Qf6 {[%clk 0:02:42.3]} 11.
Qe4 {[%clk 0:01:17.5]} 11... Qg6 {[%clk 0:01:50.6]} 12. Nc3 {[%clk 0:01:16.9]}
12... Qxe4 {[%clk 0:01:39.3]} 13. Nxe4 {[%clk 0:01:17.8]} 13... Nb4 {[%clk
0:01:39.9]} 14. O-O-O {[%clk 0:01:01.2]} 14... c6 {[%clk 0:01:34.9]} 15. a3
{[%clk 0:00:35.9]} 15... Nd5 {[%clk 0:01:33.6]} 16. Bxd5 {[%clk 0:00:36.4]}
16... exd5 {[%clk 0:01:21.1]} 17. Nc3 {[%clk 0:00:29.1]} 17... Be7 {[%clk
0:01:13.4]} 18. b4 {[%clk 0:00:24.1]} 18... a6 {[%clk 0:01:12.4]} 19. Kc2 {[%clk
0:00:21.3]} 19... Nf8 {[%clk 0:01:07.2]} 20. a4 {[%clk 0:00:12.4]} 20... Ne6
{[%clk 0:01:05.9]} 21. b5 {[%clk 0:00:12]} 21... axb5 {[%clk 0:01:00.6]} 22.
axb5 {[%clk 0:00:11.8]} 22... Kd7 {[%clk 0:01:01.5]} 23. Ra1 {[%clk 0:00:09.9]}
23... f5 {[%clk 0:00:52.5]} 24. g3 {[%clk 0:00:09.4]} 24... g5 {[%clk
0:00:51.7]} 25. f4 {[%clk 0:00:06]} 25... gxf4 {[%clk 0:00:52.6]} 26. gxf4
{[%clk 0:00:06.2]} 26... Bf6 {[%clk 0:00:48.8]} 27. Kd3 {[%clk 0:00:06.1]} 27...
Rhg8 {[%clk 0:00:47.4]} 28. Rhb1 {[%clk 0:00:06.2]} 28... Kc7 {[%clk 0:00:44.8]}
29. Rxa8 {[%clk 0:00:04.6]} 29... Rxa8 {[%clk 0:00:44.4]} 30. b6+ {[%clk
0:00:02.6]} 30... Kd7 {[%clk 0:00:44]} 31. Rg1 {[%clk 0:00:02.3]} 31... Ra3
{[%clk 0:00:41.9]} 32. Rg8 {[%clk 0:00:02.4]} 32... Nxc5+ {[%clk 0:00:41.1]} 33.
dxc5 {[%clk 0:00:03.3]} 33... Rxc3+ {[%clk 0:00:40.9]} 34. Kd2 {[%clk
0:00:02.6]} 34... d4 {[%clk 0:00:40.6]} 35. Bf2 {[%clk 0:00:02.3]} 35... Rxc5
{[%clk 0:00:40.9]} 36. Rf8 {[%clk 0:00:02.6]} 36... Ke6 {[%clk 0:00:40.7]} 37.
Rb8 {[%clk 0:00:02.1]} 37... Rb5 {[%clk 0:00:35.4]} 38. Rxb7 {[%clk 0:00:02.3]}
38... c5 {[%clk 0:00:32.6]} 39. Kd3 {[%clk 0:00:01.8]} 39... Kd5 {[%clk
0:00:21.2]} 40. Rd7+ {[%clk 0:00:02.4]} 40... Kc6 {[%clk 0:00:21.7]} 41. Rf7
{[%clk 0:00:02.7]} 41... Rb3+ {[%clk 0:00:21.9]} 42. Kc2 {[%clk 0:00:02.8]}
42... Rc3+ {[%clk 0:00:21.8]} 43. Kb2 {[%clk 0:00:02.7]} 43... Bd8 {[%clk
0:00:20.6]} 44. b7 {[%clk 0:00:02.5]} 44... Bc7 {[%clk 0:00:21.4]} 45. Rxh7
{[%clk 0:00:02.5]} 45... Rd3 {[%clk 0:00:10.4]} 46. Kc2 {[%clk 0:00:02.3]} 46...
Rc3+ {[%clk 0:00:10.5]} 47. Kb2 {[%clk 0:00:02.5]} 47... Kxb7 {[%clk 0:00:11.4]}
48. Be1 {[%clk 0:00:03]} 48... Rf3 {[%clk 0:00:06.9]} 49. Ba5 {[%clk 0:00:03.5]}
49... Kc6 {[%clk 0:00:06.9]} 50. Bxc7 {[%clk 0:00:03.5]} 50... c4 {[%clk
0:00:06.9]} 51. Be5 {[%clk 0:00:02.3]} 51... Rf2+ {[%clk 0:00:07.4]} 52. Kc1
{[%clk 0:00:02]} 52... d3 {[%clk 0:00:06.4]} 53. Rc7+ {[%clk 0:00:02.4]} 53...
Kd5 {[%clk 0:00:06.6]} 54. Rd7+ {[%clk 0:00:03]} 54... Ke4 {[%clk 0:00:05.2]}
55. Rd4+ {[%clk 0:00:02.9]} 55... Ke3 {[%clk 0:00:06]} 56. Rxc4 {[%clk
0:00:02.2]} 56... Rf1+ {[%clk 0:00:06.6]} 57. Kb2 {[%clk 0:00:02.5]} 57... d2
{[%clk 0:00:07.5]} 58. Rd4 {[%clk 0:00:01.7]} 58... d1=Q {[%clk 0:00:03.3]} 59.
Rxd1 {[%clk 0:00:02.6]} 59... Rxd1 {[%clk 0:00:04.1]} 60. h4 {[%clk 0:00:02.8]}
60... Rh1 {[%clk 0:00:04]} 61. Kc3 {[%clk 0:00:01.4]} 61... Rxh4 {[%clk
0:00:04.1]} 0-1

[Event "Late-Titled-Tuesday-Blitz-March-26-2024"]
[Site "Chess.com"]
[Date "2024.03.26"]
[Round "9"]
[White "dealshark"]
[Black "subham777"]
[Result "0-1"]
[WhiteElo "2298"]
[BlackElo "2548"]
[TimeControl "180+1"]
[EndTime "15:45:47 PDT"]
[Termination "subham777 won by resignation"]

1. e4 {[%clk 0:03:00.9]} 1... e6 {[%clk 0:02:58.5]} 2. d4 {[%clk 0:03:00.1]}
2... d5 {[%clk 0:02:57.3]} 3. Nc3 {[%clk 0:02:58.4]} 3... Nf6 {[%clk 0:02:54.2]}
4. Bd3 {[%clk 0:02:55.5]} 4... c5 {[%clk 0:02:51.7]} 5. Nf3 {[%clk 0:02:55.8]}
5... Nc6 {[%clk 0:02:49.2]} 6. exd5 {[%clk 0:02:56.1]} 6... Nxd5 {[%clk
0:02:47.8]} 7. Nxd5 {[%clk 0:02:54.2]} 7... Qxd5 {[%clk 0:02:48.7]} 8. dxc5
{[%clk 0:02:52.8]} 8... Bxc5 {[%clk 0:02:44.2]} 9. O-O {[%clk 0:02:53.2]} 9...
O-O {[%clk 0:02:13.8]} 10. a3 {[%clk 0:02:53.5]} 10... Qh5 {[%clk 0:02:10.6]}
11. b4 {[%clk 0:02:46.9]} 11... Bb6 {[%clk 0:02:07.6]} 12. Bb2 {[%clk
0:02:47.1]} 12... a6 {[%clk 0:02:01]} 13. Qe2 {[%clk 0:02:42.9]} 13... Bd7
{[%clk 0:01:53.8]} 14. c4 {[%clk 0:02:41.1]} 14... Bc7 {[%clk 0:01:50.6]} 15.
Rad1 {[%clk 0:02:36.6]} 15... Rad8 {[%clk 0:01:48.7]} 16. Rfe1 {[%clk 0:02:31]}
16... Rfe8 {[%clk 0:01:42.8]} 17. Be4 {[%clk 0:02:18.9]} 17... f5 {[%clk
0:01:30.8]} 18. Bc2 {[%clk 0:02:13.1]} 18... e5 {[%clk 0:01:20.2]} 19. h3 {[%clk
0:02:03.2]} 19... e4 {[%clk 0:01:08.3]} 20. Nd4 {[%clk 0:01:58.9]} 20... Qxe2
{[%clk 0:01:07.2]} 21. Rxe2 {[%clk 0:01:57.7]} 21... Nxd4 {[%clk 0:01:04.8]} 22.
Bxd4 {[%clk 0:01:51.5]} 22... Bc6 {[%clk 0:01:01.4]} 23. c5 {[%clk 0:01:40.7]}
23... Bb5 {[%clk 0:00:56]} 24. Red2 {[%clk 0:01:37]} 24... f4 {[%clk 0:00:56.4]}
25. Re1 {[%clk 0:01:10.2]} 25... Be5 {[%clk 0:00:38.1]} 26. Rxe4 {[%clk
0:00:56.4]} 26... Bxd4 {[%clk 0:00:35.6]} 27. Rexd4 {[%clk 0:00:48.2]} 27...
Rxd4 {[%clk 0:00:33.7]} 28. Rxd4 {[%clk 0:00:48.3]} 28... g5 {[%clk 0:00:28.5]}
29. Re4 {[%clk 0:00:30]} 29... Rd8 {[%clk 0:00:25.5]} 30. Re7 {[%clk 0:00:28.6]}
30... h5 {[%clk 0:00:18.9]} 31. Re5 {[%clk 0:00:22.9]} 31... Rd2 {[%clk
0:00:17.1]} 32. Bb3+ {[%clk 0:00:21.7]} 32... Kg7 {[%clk 0:00:15.4]} 33. Rxg5+
{[%clk 0:00:22]} 33... Kh6 {[%clk 0:00:16.2]} 34. Rd5 {[%clk 0:00:19.6]} 34...
Rb2 {[%clk 0:00:16.1]} 35. Rd6+ {[%clk 0:00:16.3]} 35... Kg5 {[%clk 0:00:16.1]}
36. Bd5 {[%clk 0:00:16.4]} 36... Rb1+ {[%clk 0:00:13.7]} 37. Kh2 {[%clk
0:00:16.7]} 37... Rb2 {[%clk 0:00:11.7]} 38. Bxb7 {[%clk 0:00:16.2]} 38... Rxf2
{[%clk 0:00:12.3]} 39. Rd5+ {[%clk 0:00:14.3]} 39... Kf6 {[%clk 0:00:11.4]} 40.
c6 {[%clk 0:00:14.6]} 40... Rc2 {[%clk 0:00:11.5]} 41. Rc5 {[%clk 0:00:14.9]}
41... Ra2 {[%clk 0:00:04.6]} 42. c7 {[%clk 0:00:15.1]} 42... Bd7 {[%clk
0:00:05.5]} 43. c8=Q {[%clk 0:00:15.2]} 43... Bxc8 {[%clk 0:00:06.2]} 44. Bxc8
{[%clk 0:00:15.8]} 44... Rxa3 {[%clk 0:00:07.1]} 45. Ra5 {[%clk 0:00:13.5]}
45... Rb3 {[%clk 0:00:06.8]} 46. Ra4 {[%clk 0:00:12.6]} 46... Rb2 {[%clk
0:00:06]} 47. Rxa6+ {[%clk 0:00:12.4]} 47... Ke5 {[%clk 0:00:05.8]} 48. Ra5+
{[%clk 0:00:12.5]} 48... Kd4 {[%clk 0:00:06]} 49. Bb7 {[%clk 0:00:13.1]} 49...
Rxb4 {[%clk 0:00:05.7]} 50. Rxh5 {[%clk 0:00:13.5]} 50... Rxb7 {[%clk
0:00:05.2]} 51. Rf5 {[%clk 0:00:13]} 51... Ke4 {[%clk 0:00:05.4]} 52. Rf8 {[%clk
0:00:13.2]} 52... Rg7 {[%clk 0:00:04.8]} 53. h4 {[%clk 0:00:13.4]} 53... Ke3
{[%clk 0:00:05]} 54. Kh3 {[%clk 0:00:13.6]} 54... Rg3+ {[%clk 0:00:04.9]} 55.
Kh2 {[%clk 0:00:13.8]} 55... Rg4 {[%clk 0:00:05.6]} 56. Rh8 {[%clk 0:00:11.8]}
56... Kf2 {[%clk 0:00:05.9]} 57. h5 {[%clk 0:00:11.4]} 57... Rxg2+ {[%clk
0:00:06.3]} 58. Kh3 {[%clk 0:00:10.9]} 58... Rg3+ {[%clk 0:00:05.8]} 59. Kh4
{[%clk 0:00:11.4]} 59... f3 {[%clk 0:00:05.4]} 60. h6 {[%clk 0:00:09.5]} 60...
Kg2 {[%clk 0:00:05.6]} 61. h7 {[%clk 0:00:09.1]} 61... f2 {[%clk 0:00:05.9]} 62.
Rf8 {[%clk 0:00:08.7]} 62... Rh3+ {[%clk 0:00:06.2]} 63. Kg4 {[%clk 0:00:08.9]}
63... Rxh7 {[%clk 0:00:07]} 64. Ra8 {[%clk 0:00:04.5]} 64... f1=Q {[%clk
0:00:07]} 65. Ra2+ {[%clk 0:00:04.5]} 65... Kg1 {[%clk 0:00:07.6]} 0-1

[Event "Late-Titled-Tuesday-Blitz-March-26-2024"]
[Site "Chess.com"]
[Date "2024.03.26"]
[Round "9"]
[White "DanielDardha2005"]
[Black "PepeCuenca"]
[Result "0-1"]
[WhiteElo "2862"]
[BlackElo "2751"]
[TimeControl "180+1"]
[EndTime "15:45:52 PDT"]
[Termination "PepeCuenca won by resignation"]

1. d4 {[%clk 0:02:54.8]} 1... Nf6 {[%clk 0:03:00.1]} 2. Bg5 {[%clk 0:02:54.6]}
2... d5 {[%clk 0:02:53.9]} 3. e3 {[%clk 0:02:54.2]} 3... Ne4 {[%clk 0:02:52.1]}
4. Bf4 {[%clk 0:02:53.4]} 4... c5 {[%clk 0:02:52.7]} 5. Nd2 {[%clk 0:02:53.1]}
5... Nxd2 {[%clk 0:02:50.4]} 6. Qxd2 {[%clk 0:02:53.6]} 6... cxd4 {[%clk
0:02:50.9]} 7. exd4 {[%clk 0:02:54.5]} 7... Nc6 {[%clk 0:02:51.1]} 8. Nf3 {[%clk
0:02:54.9]} 8... a6 {[%clk 0:02:45]} 9. h4 {[%clk 0:02:50.1]} 9... Bf5 {[%clk
0:02:41.1]} 10. Ne5 {[%clk 0:02:43.1]} 10... Rc8 {[%clk 0:02:33.2]} 11. c3
{[%clk 0:02:36.3]} 11... e6 {[%clk 0:02:28.3]} 12. h5 {[%clk 0:02:35.7]} 12...
h6 {[%clk 0:02:26.3]} 13. Nxc6 {[%clk 0:02:31.1]} 13... Rxc6 {[%clk 0:02:25.5]}
14. Bd3 {[%clk 0:02:31.5]} 14... Bxd3 {[%clk 0:02:24.4]} 15. Qxd3 {[%clk
0:02:32.4]} 15... Bd6 {[%clk 0:02:24]} 16. Bxd6 {[%clk 0:02:21.8]} 16... Qxd6
{[%clk 0:02:24.9]} 17. a4 {[%clk 0:02:21.9]} 17... O-O {[%clk 0:02:20.4]} 18.
O-O {[%clk 0:02:16.3]} 18... Qf4 {[%clk 0:02:15.2]} 19. a5 {[%clk 0:02:10.6]}
19... Qg4 {[%clk 0:02:11.4]} 20. Qd1 {[%clk 0:02:10.1]} 20... Qxd1 {[%clk
0:02:09.3]} 21. Rfxd1 {[%clk 0:02:11]} 21... Rfc8 {[%clk 0:02:06.5]} 22. Ra3
{[%clk 0:02:07.5]} 22... R8c7 {[%clk 0:02:03]} 23. Rb3 {[%clk 0:02:05.9]} 23...
Rc4 {[%clk 0:02:02.4]} 24. Ra1 {[%clk 0:02:05]} 24... Kf8 {[%clk 0:02:00.8]} 25.
f4 {[%clk 0:02:02.9]} 25... Ke7 {[%clk 0:01:57.4]} 26. Kf2 {[%clk 0:02:02.8]}
26... Kf6 {[%clk 0:01:30.8]} 27. Kf3 {[%clk 0:01:48.3]} 27... g6 {[%clk
0:01:29.6]} 28. hxg6 {[%clk 0:01:46.7]} 28... Kxg6 {[%clk 0:01:30.1]} 29. Rba3
{[%clk 0:01:42.2]} 29... h5 {[%clk 0:01:22]} 30. Re1 {[%clk 0:01:35.7]} 30...
R4c6 {[%clk 0:01:09.8]} 31. Re5 {[%clk 0:01:29.1]} 31... f5 {[%clk 0:00:50.7]}
32. Rb3 {[%clk 0:01:21.3]} 32... Kf6 {[%clk 0:00:49.4]} 33. Re1 {[%clk
0:01:21.5]} 33... Rh7 {[%clk 0:00:41.3]} 34. Kg3 {[%clk 0:00:48.2]} 34... h4+
{[%clk 0:00:36.1]} 35. Kh3 {[%clk 0:00:44.9]} 35... Rd6 {[%clk 0:00:28.7]} 36.
Re2 {[%clk 0:00:32.3]} 36... Rg7 {[%clk 0:00:27.9]} 37. Rb6 {[%clk 0:00:20.1]}
37... Rxb6 {[%clk 0:00:26]} 38. axb6 {[%clk 0:00:21]} 38... Rg4 {[%clk
0:00:22.6]} 39. Rf2 {[%clk 0:00:21.1]} 39... Ke7 {[%clk 0:00:21.9]} 40. b3
{[%clk 0:00:20.9]} 40... Rg3+ {[%clk 0:00:20.1]} 41. Kxh4 {[%clk 0:00:19]} 41...
Rxc3 {[%clk 0:00:21]} 42. Rb2 {[%clk 0:00:12.6]} 42... Rc6 {[%clk 0:00:15.7]}
43. g4 {[%clk 0:00:05.9]} 43... fxg4 {[%clk 0:00:15.6]} 44. Kxg4 {[%clk
0:00:06.8]} 44... Rxb6 {[%clk 0:00:15.5]} 45. f5 {[%clk 0:00:05.8]} 45... exf5+
{[%clk 0:00:14.1]} 46. Kxf5 {[%clk 0:00:05.8]} 46... Kd6 {[%clk 0:00:14.8]} 47.
Rh2 {[%clk 0:00:01.4]} 47... Rxb3 {[%clk 0:00:09.7]} 48. Rh6+ {[%clk 0:00:01.7]}
48... Kc7 {[%clk 0:00:09.5]} 49. Ke5 {[%clk 0:00:02.6]} 49... Rb5 {[%clk
0:00:09.8]} 50. Rh7+ {[%clk 0:00:03.3]} 50... Kb6 {[%clk 0:00:09.5]} 51. Kd6
{[%clk 0:00:04.2]} 51... a5 {[%clk 0:00:09]} 52. Kd7 {[%clk 0:00:02.8]} 52... a4
{[%clk 0:00:08.3]} 53. Kc8 {[%clk 0:00:03.3]} 53... Ka5 {[%clk 0:00:08.1]} 54.
Rh3 {[%clk 0:00:02.2]} 54... Kb4 {[%clk 0:00:08.3]} 55. Kc7 {[%clk 0:00:02.3]}
55... a3 {[%clk 0:00:08.2]} 56. Kd6 {[%clk 0:00:03]} 56... a2 {[%clk 0:00:07.9]}
57. Rh1 {[%clk 0:00:03.5]} 57... Kb3 {[%clk 0:00:08.2]} 58. Rh3+ {[%clk
0:00:03.2]} 58... Ka4 {[%clk 0:00:07.7]} 59. Rh8 {[%clk 0:00:01.6]} 59... Ra5
{[%clk 0:00:06.5]} 60. Rh1 {[%clk 0:00:01.5]} 60... Kb3 {[%clk 0:00:05.3]} 61.
Rh3+ {[%clk 0:00:01.1]} 61... Kc4 {[%clk 0:00:05.3]} 62. Rh7 {[%clk 0:00:01]}
62... a1=Q {[%clk 0:00:05.3]} 63. Rc7+ {[%clk 0:00:01.9]} 63... Kd3 {[%clk
0:00:05.8]} 64. Kd7 {[%clk 0:00:02.5]} 64... Qxd4 {[%clk 0:00:05.8]} 65. Kc8
{[%clk 0:00:03.2]} 65... Rc5 {[%clk 0:00:05.6]} 66. Kb8 {[%clk 0:00:04.1]} 66...
Rxc7 {[%clk 0:00:05.6]} 67. Ka8 {[%clk 0:00:05]} 67... Qc5 {[%clk 0:00:04.7]}
68. Kb8 {[%clk 0:00:05.9]} 68... b5 {[%clk 0:00:04.4]} 0-1

[Event "Late-Titled-Tuesday-Blitz-March-26-2024"]
[Site "Chess.com"]
[Date "2024.03.26"]
[Round "10"]
[White "xakevicius91"]
[Black "GarciaIsaac"]
[Result "0-1"]
[WhiteElo "2535"]
[BlackElo "2649"]
[TimeControl "180+1"]
[EndTime "15:49:30 PDT"]
[Termination "GarciaIsaac won by resignation"]

1. e4 {[%clk 0:02:51.5]} 1... g6 {[%clk 0:03:00.9]} 2. d4 {[%clk 0:02:51]} 2...
Bg7 {[%clk 0:03:00.1]} 3. Nc3 {[%clk 0:02:51.3]} 3... d5 {[%clk 0:03:00.4]} 4.
exd5 {[%clk 0:02:49]} 4... Nf6 {[%clk 0:02:59.8]} 5. Bc4 {[%clk 0:02:41]} 5...
Nbd7 {[%clk 0:02:58.8]} 6. Bb3 {[%clk 0:02:39.2]} 6... a5 {[%clk 0:02:57.3]} 7.
a4 {[%clk 0:02:38.3]} 7... Nb6 {[%clk 0:02:57.3]} 8. Nge2 {[%clk 0:02:37.9]}
8... Nbxd5 {[%clk 0:02:56]} 9. Nxd5 {[%clk 0:02:38.3]} 9... Nxd5 {[%clk
0:02:55.8]} 10. O-O {[%clk 0:02:38.8]} 10... O-O {[%clk 0:02:55.1]} 11. c4
{[%clk 0:02:37.6]} 11... Nb4 {[%clk 0:02:54.4]} 12. Bd2 {[%clk 0:02:35.1]} 12...
c5 {[%clk 0:02:33.8]} 13. Bxb4 {[%clk 0:02:33.4]} 13... axb4 {[%clk 0:02:29.3]}
14. dxc5 {[%clk 0:02:29.4]} 14... Bxb2 {[%clk 0:02:27]} 15. Rb1 {[%clk
0:02:26.2]} 15... Bg7 {[%clk 0:02:22.6]} 16. Nf4 {[%clk 0:02:15.8]} 16... Qc7
{[%clk 0:02:20.4]} 17. Qe2 {[%clk 0:02:10.7]} 17... Qxf4 {[%clk 0:02:14.2]} 0-1